Cogmind - Beta 15 @@@ ROGUE MODE // 2025.06.01 @ 22:33:47 Player: Nisakard Result: Destroyed by as-14649 with Assembled Heavy Rifle Performance ------------- Evolutions (0) 0 Regions Visited (4) 800 Robots Destroyed (34) 170 Value Destroyed (499) 499 Prototype IDs (0) 0 Alien Tech Used (0) 0 Bonus (106) 106 TOTAL SCORE: 1575 Bonus ------- Follower Combat Kills 106 Cogmind --------- Core Integrity 0/250 Matter 300/300 Energy 160/160 System Corruption 0% Temperature Cool (0) Movement Core (3450) Ox68 Location -9/Mines Parts ------- > --- POWER (1) -------- Light Nuclear Core > --- PROPULSION (2) --- (None) > --- UTILITY (2) ------ Humpback > --- WEAPON (2) ------- (None) > --- INVENTORY (35) --- Ion Engine Ion Engine Light Ion Engine Wheel Wheel Disposable Heat Sink High-capacity Battery (250) High-capacity Matter Pod (200) Seismic Detector Particle Gun Particle Gun Spread Laser Assault Rifle Light Assault Rifle Grenade Launcher Grenade Launcher Grenade Launcher Grenade Launcher Datajack Datajack Mining Laser Makeshift Spear EMP Trap EMP Trap EMP Trap Peak State ------------ > --- POWER ------------ Light Nuclear Core > --- PROPULSION ------- Wheel Wheel > --- UTILITY ---------- Huge Storage Unit Visual Processing Unit > --- WEAPON ----------- Spread Laser Spread Laser > --- INVENTORY -------- Ion Engine Ion Engine Light Ion Engine Wheel Wheel Disposable Heat Sink High-capacity Battery High-capacity Matter Pod Seismic Detector Particle Gun Particle Gun Spread Laser Assault Rifle Light Assault Rifle Grenade Launcher Grenade Launcher Grenade Launcher Grenade Launcher Grenade Launcher Grenade Launcher Datajack Datajack Mining Laser Makeshift Spear [Rating: 15] Favorites ----------- Power Light Nuclear Core Engine Ion Engine Power Core Light Nuclear Core Propulsion Wheel Wheel Wheel Utility Huge Storage Unit Device Improved Terrain Scanner Storage Huge Storage Unit Processor Visual Processing Unit Weapon Spread Laser Energy Gun Spread Laser Special Weapon Mining Laser Special Melee Weapon Datajack Build | -11 -10 -10 -10 -9 ------- Run | Yrd Mat Min Exi Min Slots Evolved . | . . . . . Power . | . . . . . Propulsion . | . . . . . Utility . | . . . . . Weapon . | . . . . . Parts Attached 27 | 7 15 3 2 . Power 4 | 1 2 1 . . Engine 3 | 1 2 . . . Core 1 | . . 1 . . Reactor . | . . . . . Propulsion 7 | 2 3 2 . . Treads . | . . . . . Leg . | . . . . . Wheel 7 | 2 3 2 . . Hover . | . . . . . Flight . | . . . . . Utility 6 | 2 3 . 1 . Device 1 | 1 . . . . Storage 4 | 1 2 . 1 . Processor 1 | . 1 . . . Hackware . | . . . . . Protection . | . . . . . Artifact . | . . . . . Weapon 10 | 2 7 . 1 . Energy Gun 8 | 2 6 . . . Energy Cannon . | . . . . . Ballistic Gun . | . . . . . Ballistic Cannon . | . . . . . Launcher . | . . . . . Special Weapon 1 | . . . 1 . Impact Weapon . | . . . . . Slashing Weapon . | . . . . . Piercing Weapon . | . . . . . Special Melee Weapon 1 | . 1 . . . Unidentified Prototypes . | . . . . . Parts Lost 7 | . 1 2 . 4 Power . | . . . . . Propulsion 4 | . . 2 . 2 Utility 1 | . 1 . . . Weapon 2 | . . . . 2 Highest Loss Streak 3 | . 1 2 . 3 To Critical Strikes . | . . . . . Average Backups 18 | 2 15 22 21 22 Power 2 | . 1 2 2 3 Propulsion 3 | 1 4 2 1 2 Utility 3 | . 2 4 3 4 Weapon 9 | 1 6 11 10 11 Tool/Special . | . . . . . Unused Backups 23 | 1 . 2 . 20 Power 3 | . . . . 3 Propulsion 3 | 1 . . . 2 Utility 4 | . . . . 4 Weapon 12 | . . 2 . 10 Tool/Special 1 | . . . . 1 Average Slot Usage (%) 92 | . 97 99 86 69 Engine 5 | . 13 1 . . Core 7 | . . 12 14 14 Wheel 27 | . 28 27 28 25 Storage 14 | . 14 14 14 14 Processor 7 | . 11 14 1 . Energy Gun 24 | . 26 28 19 15 Special Weapon 2 | . . . 8 . Peak Build Rating 15 | 9 12 15 15 14 Average Rating 12 | 5 10 14 13 12 On Entrance 10 | . 9 12 15 14 Naked Turns . | . . . . . Heaviest Build 211 | 11 91 91 211 211 Greatest Support 26 | 26 26 20 20 20 Greatest Overweight (x) 68 | . 4 4 10 68 Average Overweight (x) 5 | . 3 4 9 10 Largest Inventory Capacity 35 | 8 25 25 35 35 Average Capacity 27 | 7 24 25 33 35 Most Carried 25 | 8 24 25 25 25 Average Carried 20 | 2 15 23 24 25 Final Capacity 35 | 8 25 25 35 35 Final Carried 25 | 7 24 25 25 25 Class Distribution -------------------- 63% | Mutant 35% | Hauler-Mutant Dominant Class ---------------- Mutant | -10/Materials Mutant | -10/Mines Hauler-Mutant | -10/Exiles Hauler-Mutant | -9/Mines Resources | -11 -10 -10 -10 -9 ----------- Run | Yrd Mat Min Exi Min Matter Collected 822 | 211 421 155 10 25 Remotely . | . . . . . Salvage Created 848 | 150 567 131 . . Parts 54 | 13 35 6 . . Haulers Intercepted 2 | . 2 . . . Recyclers Shooed . | . . . . . Parts Field Recycled . | . . . . . Retrieved Matter . | . . . . . Parts Self-Destructed . | . . . . . Prevented . | . . . . . Kills | -11 -10 -10 -10 -9 ------- Run | Yrd Mat Min Exi Min Combat Hostiles Destroyed 17 | . 16 1 . . Guns 17 | . 16 1 . . Classes Destroyed 8 | 2 6 . . . Worker 3 | . 3 . . . Tunneler 5 | 5 . . . . Hauler 2 | . 2 . . . Recycler 3 | 1 . 2 . . Operator 1 | . 1 . . . Watcher 3 | . 3 . . . Swarmer 9 | . 9 . . . Grunt 8 | . 7 1 . . Best Kill Streak 4 | 4 4 1 . . Combat Bots Only 3 | . 3 1 . . Max Kills in Single Turn 2 | 1 2 1 . . Gunslinging . | . . . . . Exploded . | . . . . . Melee . | . . . . . Uniques/NPCs Destroyed . | . . . . . Combat | -11 -10 -10 -10 -9 -------- Run | Yrd Mat Min Exi Min Hostile Shots Fired 104 | . 59 16 . 29 Missed 24 | . 11 3 . 10 Hits 80 | . 48 13 . 19 Projectile 80 | . 48 13 . 19 AOE 11 | . . . . 11 Damage Taken 1300 | . 532 162 . 606 Core 265 | . 55 55 . 155 Absorbed by Shields . | . . . . . Regen/Repaired (Parts) 47 | . 47 . . . Core Remaining (%) 100 | 100 . . . . Volleys Fired 82 | 9 58 12 2 1 Largest 2 | 2 2 2 1 1 Hottest 130 | 80 130 130 100 65 Shots Fired 158 | 16 116 23 2 1 Gun 156 | 16 116 23 . 1 Cannon . | . . . . . Launcher . | . . . . . Special 2 | . . . 2 . Kinetic . | . . . . . Thermal 158 | 16 116 23 2 1 Explosive . | . . . . . Electromagnetic . | . . . . . Robot Hit Streak 9 | 4 9 7 . 1 Robot Miss Streak 6 | 2 6 5 . 4 Penetration Max . | . . . . . Secondary Targets 2 | . 2 . . . Max Gunslinging Chain 1 | . 1 . . . Shots Hit Robots 113 | 9 81 22 . 1 Core Hits 87 | 7 59 20 . 1 Critical Kills . | . . . . . Critical Parts Destroyed . | . . . . . Critical Strikes 6 | . 6 . . . Burn 6 | . 6 . . . Melee Attacks . | . . . . . Impact . | . . . . . Slashing . | . . . . . Piercing . | . . . . . Sneak Attacks . | . . . . . Combat Hostiles . | . . . . . Follow-up Attacks . | . . . . . Damage Inflicted 1397 | 107 996 282 . 12 Guns 1391 | 107 990 282 . 12 Cannons . | . . . . . Explosions . | . . . . . Melee . | . . . . . Ramming 6 | . 6 . . . Kinetic . | . . . . . Thermal 1391 | 107 990 282 . 12 Explosive . | . . . . . Electromagnetic . | . . . . . Impact . | . . . . . Slashing . | . . . . . Piercing . | . . . . . Highest Corruption . | . . . . . Average Corruption . | . . . . . Corruption Purged . | . . . . . Corruption Blocked . | . . . . . Overload Shots . | . . . . . Overflow Damage . | . . . . . Projectiles . | . . . . . Explosions . | . . . . . Melee . | . . . . . Knockbacks . | . . . . . Impact . | . . . . . Kinetic . | . . . . . Secondary . | . . . . . Self-Inflicted Damage 3 | . 3 . . . Shots . | . . . . . Rammed 1 | . 1 . . . Targets Rammed 1 | . 1 . . . Kicked . | . . . . . Crushed . | . . . . . Highest Temperature 582 | 54 381 582 56 28 Average Temperature 124 | 22 112 222 28 17 Received Heat Transfer 234 | . 126 90 . 18 Effects 16 | . 3 13 . . Shutdowns 1 | . . 1 . . Energy Bleed 2 | . 1 1 . . Interference 6 | . 2 4 . . Matter Decay 2 | . . 2 . . Short Circuit 1 | . . 1 . . Damage (major) 4 | . . 4 . . Siege Activations . | . . . . . Martial Activations . | . . . . . Shielding Activations . | . . . . . Robots Disrupted . | . . . . . Combat Hostiles . | . . . . . Robots Corrupted . | . . . . . Combat Hostiles . | . . . . . Parts Fried . | . . . . . Impact Corruptions . | . . . . . Robots Melted . | . . . . . Combat Hostiles . | . . . . . Parts Melted 3 | . 3 . . . Heat Transferred 3250 | 250 2640 345 . 15 Parts Sabotaged . | . . . . . Parts Stolen . | . . . . . Parts Stripped . | . . . . . Power Chain Reactions . | . . . . . Alert | -11 -10 -10 -10 -9 ------- Run | Yrd Mat Min Exi Min Maximum Alert Level . | . . . . . Low Security (%) 100 | 100 100 100 . 100 Level 1 . | . . . . . Level 2 . | . . . . . Level 3 . | . . . . . Level 4 . | . . . . . Level 5 . | . . . . . High Security . | . . . . . Max Security . | . . . . . Peak Influence 85 | 10 85 81 . 57 Initial 9 | . . 9 . . Average 15 | 2 19 9 . 10 Influence Increases 700 | 30 451 111 . 108 Destroy 0b10 Robot/C 460 | . 320 80 . 60 Destroy 0b10 Robot/NC 85 | 30 45 10 . . Destroy Leader 90 | . 70 10 . 10 Allied During Kill 19 | . . 11 . 8 Successful Hack 15 | . 15 . . . Destroy Structure 1 | . 1 . . . Lose Combat Pursuer 30 | . . . . 30 Influence Decreases 700 | 30 427 135 . 108 Entered New Map 15 | . . 15 . . Time Decay 537 | 30 328 111 . 68 Lost Part 19 | . 10 9 . . Lost Ally 40 | . . . . 40 Purge Threat 89 | . 89 . . . Squads Dispatched 2 | . 2 . . . Investigation 1 | . 1 . . . Extermination . | . . . . . Reinforcement 1 | . 1 . . . Assault . | . . . . . Garrison . | . . . . . Intercept . | . . . . . Searches Triggered . | . . . . . Construction Impeded . | . . . . . Haulers Reinforced . | . . . . . Active Scanning Responses . | . . . . . Cargo Convoy Interrupts . | . . . . . Stealth | -11 -10 -10 -10 -9 --------- Run | Yrd Mat Min Exi Min Distress Signals . | . . . . . Communications Jammed . | . . . . . Distress Signals . | . . . . . Times Spotted 30 | . 21 2 . 7 Peak Tracking Total 3 | . 3 2 . 3 Tactical Retreats 1 | . . . . 1 Traps | -11 -10 -10 -10 -9 ------- Run | Yrd Mat Min Exi Min Traps Triggered 1 | . 1 . . . Indirectly . | . . . . . Trap Hack Attempts 64 | . 64 . . . Triggered . | . . . . . Disarmed 4 | . 4 . . . Reprogrammed 4 | . 4 . . . Reused . | . . . . . Traps Extracted . | . . . . . Installed . | . . . . . Triggered . | . . . . . Most Traps Carried 3 | . . 3 3 3 Machines | -11 -10 -10 -10 -9 ---------- Run | Yrd Mat Min Exi Min Machines Disabled . | . . . . . Max in Single Turn . | . . . . . Machines Repaired . | . . . . . Machines Dismantled . | . . . . . Machines Sabotaged . | . . . . . Overloaded Fab Kills . | . . . . . Hacking | -11 -10 -10 -10 -9 --------- Run | Yrd Mat Min Exi Min Machines Accessed 14 | . 10 . 4 . Terminals 7 | . 7 . . . Fabricators . | . . . . . Repair Stations 1 | . 1 . . . Recycling Units 2 | . 2 . . . Scanalyzers . | . . . . . Garrison Access . | . . . . . Total Hacks 29 | . 25 . 4 . Successful 16 | . 12 . 4 . Failed 13 | . 13 . . . Catastrophic 4 | . 4 . . . Database Lockouts . | . . . . . Manual 11 | . 8 . 3 . Terminals 20 | . 20 . . . Fabricators . | . . . . . Repair Stations 2 | . 2 . . . Recycling Units 3 | . 3 . . . Scanalyzers . | . . . . . Garrison Access . | . . . . . Terminal Hacks 12 | . 8 . 4 . Record 4 | . . . 4 . Emergency Access Points 1 | . 1 . . . Unreport Threat 2 | . 2 . . . Locate Traps 2 | . 2 . . . Reprogram Traps 1 | . 1 . . . Dispatch Records 1 | . 1 . . . Zone Layout 1 | . 1 . . . Fabricator Hacks . | . . . . . Repair Station Hacks 2 | . 2 . . . Scan Component 1 | . 1 . . . Repair 1 | . 1 . . . Recycling Unit Hacks 1 | . 1 . . . Report Inventory 1 | . 1 . . . Scanalyzer . | . . . . . Garrison Access Hacks . | . . . . . Unauthorized Hacks 1 | . 1 . . . Terminals . | . . . . . Fabricators . | . . . . . Repair Stations . | . . . . . Recycling Units 1 | . 1 . . . Recyclers 1 | . 1 . . . Scanalyzers . | . . . . . Garrison Access . | . . . . . Data Cores Recovered . | . . . . . Used . | . . . . . Hacking Detections 8 | . 8 . . . Full Trace Events . | . . . . . Feedback Events . | . . . . . Feedback Blocked . | . . . . . Robot Schematics Acquired . | . . . . . Robots Built . | . . . . . Authchips . | . . . . . Time . | . . . . . Total Robot Build Rating . | . . . . . Part Schematics Acquired . | . . . . . Parts Built . | . . . . . Authchips . | . . . . . Time . | . . . . . Total Part Build Rating . | . . . . . Parts Repaired 1 | . 1 . . . Time 26 | . 26 . . . Parts Recycled . | . . . . . Recycled Matter . | . . . . . Retrieved Matter . | . . . . . Retrieved Components . | . . . . . Parts Scanalyzed . | . . . . . Part Schematics Acquired . | . . . . . Parts Damaged . | . . . . . Bothacking | -11 -10 -10 -10 -9 ------------ Run | Yrd Mat Min Exi Min Used RIF Installer . | . . . . . Robots Hacked . | . . . . . Non-combat . | . . . . . Combat . | . . . . . Robot Hacks Applied . | . . . . . Relay Couplers Released . | . . . . . Fabnet Peak Effective % . | . . . . . Robots Rewired . | . . . . . Allies Hacked . | . . . . . Hacks Repelled . | . . . . . Allies | -11 -10 -10 -10 -9 -------- Run | Yrd Mat Min Exi Min Total Allies 3 | . . 3 . . Largest Group 3 | . . 3 3 3 Highest-Rated Group 40 | . . 40 40 40 Highest-Rated Ally 16 | . . 16 16 16 Total Orders . | . . . . . Ally Attacks 40 | . . 13 . 27 Total Damage 333 | . . 83 . 250 Kills 6 | . . 3 . 3 Allies Corrupted . | . . . . . Allies Melted . | . . . . . Intel | -11 -10 -10 -10 -9 ------- Run | Yrd Mat Min Exi Min Active Infowar (turns) 1627 | 9 1597 21 . . Optics 1586 | . 1565 21 . . Terrain 41 | 9 32 . . . Robot Analysis Total . | . . . . . Derelict Logs Recovered 2 | . . 1 . 1 Drone Launches . | . . . . . Drone Recoveries . | . . . . . Exploration | -11 -10 -10 -10 -9 ------------- Run | Yrd Mat Min Exi Min Turns Passed 4836 | 132 1933 929 1514 328 Spaces Moved 2466 | 101 1010 569 685 101 Core 6 | 5 . . . 1 Treads . | . . . . . Legs . | . . . . . Wheels 2460 | 96 1010 569 685 100 Hover . | . . . . . Flight . | . . . . . Fastest Speed 50 | 50 80 140 140 230 Average Speed 162 | 87 137 140 215 266 Slowest Speed 3450 | 90 140 140 230 3450 Overloaded Moves . | . . . . . Propulsion Burnouts . | . . . . . Robots Hopped . | . . . . . Potential Cave-ins . | . . . . . Cave-ins Triggered . | . . . . . Exploration Rate (%) 60 | 4 100 90 93 17 Regions Visited 4 Branch Regions 3 Pre-discovered Areas 1 | . . 1 . . Known Exits Taken . | . . . . . Unknown Exits Taken 4 | 1 1 1 1 . Scrap Searched 1 | . . 1 . . Spaces Dug . | . . . . . Terrain Destroyed . | . . . . . Melee . | . . . . . Projectile . | . . . . . AOE . | . . . . . Terrain Rammed . | . . . . . Walls Destroyed . | . . . . . Machines Disabled . | . . . . . Actions | -11 -10 -10 -10 -9 --------- Run | Yrd Mat Min Exi Min Total 3126 | 125 1438 679 720 164 Wait 406 | . 257 87 2 60 Move 2462 | 100 1009 568 684 101 Hop . | . . . . . Pick Up 56 | 8 18 5 24 1 Fast Attach 11 | 7 4 . . . Attach 3 | . . 2 1 . Detach . | . . . . . Swap 17 | . 13 2 2 . Drop 24 | 1 14 3 5 1 Fire 82 | 9 58 12 2 1 Melee . | . . . . . Ram 1 | . 1 . . . Kick . | . . . . . Crush . | . . . . . Escape Stasis . | . . . . . Rewire . | . . . . . Trap 64 | . 64 . . . Miscellaneous . | . . . . . Route ------- -11/Scrapyard -10/Materials (discovered 6 exits: [*Mat x3] / [*Min x2] / [*Sub]) -10/Mines (discovered 4 exits: [*Mat x2] / *Exi / [*Sub]) -10/Exiles (discovered 2 exits: [*Min x2]) -9/Mines (discovered 1 exit: *Mat) History --------- Turn | Location | Event 10 | -11/Scrapyard | Discovered new exit (range 15) 133 | -11/Scrapyard | Entered Materials 313 | -10/Materials | Build established: Mutant 595 | -10/Materials | Discovered new exit (range 17) 741 | -10/Materials | Discovered new exit (range 8) 866 | -10/Materials | Discovered new exit (range 18) 1521 | -10/Materials | Discovered new exit (range 13) 1625 | -10/Materials | Discovered new exit (range 7) 1802 | -10/Materials | Repaired Ion Engine 1892 | -10/Materials | Discovered new exit (range 16) 2066 | -10/Materials | Entered Mines 2239 | -10/Mines | Learned location of Zion (-7) 2245 | -10/Mines | Discovered new exit (range 9) 2308 | -10/Mines | Discovered new exit (range 10) 2330 | -10/Mines | YI-UF0 nonchalantly dropped a Grenade Launcher on the ground 2362 | -10/Mines | Assisted by bots powering up and referring to "LRC-V3" 2760 | -10/Mines | A weapon hastily lodged in a ceiling crevice suddenly fell to the ground 2882 | -10/Mines | Found a hidden stash of uninstalled traps 2912 | -10/Mines | Discovered new exit (range 12) 2987 | -10/Mines | Deemed a non-threat by the Exiles lab entrance 2988 | -10/Mines | Discovered new exit (range 5) 2995 | -10/Mines | Entered Exiles 2995 | -10/Exiles | Found Exiles lab abandoned 2995 | -10/Exiles | Accompanied by 3 allies 3016 | -10/Exiles | Discovered new exit (range 15) 3440 | -10/Exiles | Build established: Hauler-Mutant 3827 | -10/Exiles | Discovered new exit (range 12) 4509 | -10/Exiles | Entered Mines 4509 | -9/Mines | Accompanied by 3 allies 4569 | -9/Mines | Identified exit to Materials 4770 | -9/Mines | Assembled infested the area 4794 | -9/Mines | Core integrity fell below 50% 4802 | -9/Mines | Core integrity fell below 20% 4837 | -9/Mines | Destroyed by as-14649 with Assembled Heavy Rifle Last Messages --------------- Loading 1 Mines exit... 04585_ Spread Laser destroyed. 04671_ Dropped Ion Engine. 04671_ Acquired Ion Engine. 04679_ Acquired 25 matter. 04770_ ALERT: Infestation in the mines, dispatching Demolisher response squad. 04791_ C-30 ARC bursts open, deploying its payload. 04791_ D-53 Grenadier unfolds itself. 04793_ Laser Drill disabled. 04795_ Trooper 1b destroyed. 04795_ Wheel destroyed. 04797_ Spread Laser destroyed. 04799_ D-53 Grenadier destroyed. 04806_ The unstable cave ceiling collapses. 04807_ Wheel destroyed. 04808_ The unstable cave ceiling collapses. 04810_ D-53 Grenadier destroyed. 04812_ The unstable cave ceiling collapses. Map ----- +----------------------------------------------------+ | | | | | | | | | | | | | | | ???????????????????????????????????????????????? | | ???????????????????????????????????????????????? | | ???????????????????????????????????????????????? | | ??###########??????????????????????????????????? | | ??# #??????????????????????????????????? | | ??# #??????????????????????????????????? | | ??# #??????????????????????????????????? | | ??# """ < #??????????????????????????????????? | | ??# """ #??????????????????????????????????? | | ??# """ #??????????????????????????????????? | | ??# #??????????????????????????????????? | | ??# %[ #?????????######???????????????????? | | ??##*########???????### # ###?????????????????? | | ???#%#?????????????## ########## #????? | | ???#!#????????????## a #?????? | | ???#=########?????## a #?????? | | ???#[ !* #??#### # ######### #?????? | | ???######## #?## # # ## #??????????##?????? | | ??????????# ### @ # #?????????????????? | | ??????????# k #?????????????????? | | ??????????# #?????????????????? | | ??????????####### ##?????????????????? | | ????????????????## #??????????????????? | | ?????????????????### ?????????????????? | | ???????????????????##### ????????????????? | | ???????????????????????## #???????????????? | | ?????????????????????????# #??????????????? | | ?????????????????????????? #??????????????? | | ?????????????????????????? #??????????????? | | ?????????????????????????? ##??????????????? | | ??????????????????????????? #???????????????? | | ???????????????????????????# ##???????????????? | | ????????????????????????????###????????????????? | | ???????????????????????????????????????????????? | | ???????????????????????????????????????????????? | | ???????????????????????????????????????????????? | | ???????????????????????????????????????????????? | | ???????????????????????????????????????????????? | | ???????????????????????????????????????????????? | | ???????????????????????????????????????????????? | | ???????????????????????????????????????????????? | | ???????????????????????????????????????????????? | | ???????????????????????????????????????????????? | +----------------------------------------------------+ Best States ------------- Heat Dissipation 25 Energy Generation 14 Energy Capacity 250 Matter Stores 300 Matter Capacity 300 Sight Range 18 Terrain Scan Range 16 Terrain Scan Density 10 Evasion (%) 42 Item Schematics ----------------- None Robot Schematics ------------------ None Fabricated ------------ Nothing Repaired ---------- Ion Engine | 21% | -10/Materials Alien Tech Used ----------------- None Achievements -------------- Tank Challenges ------------ None Game ------ Seed LightningDirtyFalx Manual? 0 Play Time 00:21:37 Cumulative 9.0 hours Start 2025.06.01 @ 22:10:26 End 2025.06.01 @ 22:33:47 Sessions 1 Manual Loads 0 Difficulty Rogue Special Mode None Game No. 16 Rogue 16 Adventurer 0 Explorer 0 Win Type - Total 0 Types 0/0/0/0/0/0/0/0/0/0 Lore% 24 Gallery% 13 Achievement% 23 Wizard Run 0 Options --------- Layout 1 ASCII 0 Keyboard 0 Movement Numpad Keybinds 0 Fullscreen 2 Font 24/Smallcaps Map View 50x35 Zoom Use 0% Tactical HUD 1 Map Filters NONE Filters NONE Steam 1 RUN: a781add2-9f3d-44ac-9a2c-3556bb1d1b11